Cogmind - Beta 15 --- EXPLORER MODE // 2025.08.14 @ 09:39:26 Player: pattypat Result: Self-destructed Performance ------------- Evolutions (2) 1000 Regions Visited (4) 800 Robots Destroyed (10) 50 Value Destroyed (224) 224 Prototype IDs (1) 20 Alien Tech Used (0) 0 Bonus (0) 0 TOTAL SCORE: 2094 Bonus ------- None Cogmind --------- Core Integrity 473/550 Matter 243/300 Energy 250/250 System Corruption 0% Temperature Cool (0) Movement Flying (250) Ox3 Location -8/Materials Parts ------- > --- POWER (2) -------- Ion Engine > --- PROPULSION (5) --- Improved Flight Unit > --- UTILITY (3) ------ Medium Storage Unit Signal Interpreter Improved Targeting Computer > --- WEAPON (2) ------- Light Assault Rifle > --- INVENTORY (10) --- Ion Engine Cooling System Structural Scanner Visual Processing Unit Sensor Array Improved Terrain Scanner Targeting Computer Light Assault Rifle Light Assault Rifle Improved Datajack Peak State ------------ > --- POWER ------------ Ion Engine Light Ion Engine > --- PROPULSION ------- Flight Unit Flight Unit Flight Unit Flight Unit Improved Flight Unit > --- UTILITY ---------- Medium Storage Unit Signal Interpreter Improved Targeting Computer > --- WEAPON ----------- Light Assault Rifle Improved Datajack > --- INVENTORY -------- Ion Engine Cooling System Structural Scanner Visual Processing Unit Sensor Array Improved Terrain Scanner Targeting Computer Light Assault Rifle Light Assault Rifle [Rating: 18] Favorites ----------- Power Ion Engine Engine Ion Engine Propulsion Flight Unit Treads Light Treads Leg Aluminum Leg Flight Unit Flight Unit Utility Medium Storage Unit Storage Medium Storage Unit Processor Signal Interpreter Protection Weapon Shielding Weapon Light Assault Rifle Energy Gun EM Pulse Gun Ballistic Gun Light Assault Rifle Special Melee Weapon Improved Datajack Build | -11 -10 -9 -9 -8 ------- Run | Yrd Mat Mat Min Mat Slots Evolved 5 | . 1 2 . 2 Power 1 | . . . . 1 Propulsion 3 | . . 2 . 1 Utility 1 | . 1 . . . Weapon . | . . . . . Parts Attached 24 | 9 2 7 . 6 Power 3 | 1 . 1 . 1 Engine 3 | 1 . 1 . 1 Core . | . . . . . Reactor . | . . . . . Propulsion 10 | 4 . 4 . 2 Treads 2 | 2 . . . . Leg 2 | 2 . . . . Wheel . | . . . . . Hover . | . . . . . Flight 6 | . . 4 . 2 Utility 5 | 2 2 1 . . Device . | . . . . . Storage 1 | 1 . . . . Processor 3 | . 2 1 . . Hackware . | . . . . . Protection 1 | 1 . . . . Artifact . | . . . . . Weapon 6 | 2 . 1 . 3 Energy Gun 2 | . . . . 2 Energy Cannon . | . . . . . Ballistic Gun 3 | 2 . 1 . . Ballistic Cannon . | . . . . . Launcher . | . . . . . Special Weapon . | . . . . . Impact Weapon . | . . . . . Slashing Weapon . | . . . . . Piercing Weapon . | . . . . . Special Melee Weapon 1 | . . . . 1 Unidentified Prototypes 1 | . . . . 1 Parts Lost 7 | . . . . 7 Power 1 | . . . . 1 Propulsion 5 | . . . . 5 Utility . | . . . . . Weapon 1 | . . . . 1 Highest Loss Streak 4 | . . . . 4 To Critical Strikes . | . . . . . Average Backups 8 | 3 8 9 10 9 Power 1 | . 1 2 2 1 Propulsion 1 | 1 2 1 . . Utility 3 | 1 3 4 6 6 Weapon 1 | . . 1 2 2 Tool/Special . | . . . . . Unused Backups 10 | . 2 1 . 7 Power . | . . . . . Propulsion 1 | . . 1 . . Utility 7 | . 1 . . 6 Weapon 2 | . 1 . . 1 Tool/Special . | . . . . . Average Slot Usage (%) 92 | . 99 90 100 85 Engine 11 | . 12 10 10 14 Leg 12 | . 24 9 . . Flight 15 | . . 20 40 30 Storage 10 | . 12 10 10 8 Processor 18 | . 18 20 20 16 Protection 2 | . 6 . . . Ballistic Gun 19 | . 24 20 20 10 Peak Build Rating 18 | 7 9 12 12 18 Average Rating 9 | 5 7 10 12 15 On Entrance 7 | . 7 8 12 12 Naked Turns . | . . . . . Heaviest Build 22 | 18 18 17 15 22 Greatest Support 40 | 40 20 20 16 21 Greatest Overweight (x) 3 | 3 1 . . 1 Average Overweight (x) . | . . . . . Largest Inventory Capacity 10 | 10 10 10 10 10 Average Capacity 9 | 9 10 10 10 10 Most Carried 10 | 7 10 10 10 10 Average Carried 8 | 3 8 9 10 9 Final Capacity 10 | 10 10 10 10 10 Final Carried 10 | 7 9 10 10 10 Class Distribution -------------------- 76% | Hacker-Mutant 23% | Scavenger-Sprinter Dominant Class ---------------- Hacker-Mutant | -10/Materials Scavenger-Sprinter | -9/Materials Scavenger-Sprinter | -9/Mines Hacker-Mutant | -8/Materials Resources | -11 -10 -9 -9 -8 ----------- Run | Yrd Mat Mat Min Mat Matter Collected 486 | 236 72 178 . . Remotely . | . . . . . Salvage Created 292 | . 25 267 . . Parts 25 | . 5 20 . . Haulers Intercepted . | . . . . . Recyclers Shooed . | . . . . . Parts Field Recycled . | . . . . . Retrieved Matter . | . . . . . Parts Self-Destructed . | . . . . . Prevented . | . . . . . Kills | -11 -10 -9 -9 -8 ------- Run | Yrd Mat Mat Min Mat Combat Hostiles Destroyed 9 | . 2 7 . . Guns 9 | . 2 7 . . Classes Destroyed 4 | . 1 3 . . Watcher 1 | . . 1 . . Swarmer 5 | . 2 3 . . Grunt 2 | . . 2 . . Sentry 2 | . . 2 . . Best Kill Streak 4 | . 2 4 . . Combat Bots Only 4 | . 2 4 . . Max Kills in Single Turn 1 | . 1 1 . . Gunslinging . | . . . . . Exploded . | . . . . . Melee . | . . . . . Uniques/NPCs Destroyed . | . . . . . Combat | -11 -10 -9 -9 -8 -------- Run | Yrd Mat Mat Min Mat Hostile Shots Fired 138 | . 9 64 . 65 Missed 54 | . 5 26 . 23 Hits 84 | . 4 38 . 42 Projectile 84 | . 4 38 . 42 Damage Taken 672 | . 20 280 . 372 Core 178 | . 5 96 . 77 Absorbed by Shields . | . . . . . Redirected to Shielding 1 | . 1 . . . Ignored by Resistances 417 | . 14 177 . 226 Core Remaining (%) 91 | 100 98 . 76 . Volleys Fired 40 | . 4 24 . 12 Largest 2 | . 2 2 . 2 Hottest 60 | . 40 40 . 60 Shots Fired 71 | . 8 48 . 15 Gun 71 | . 8 48 . 15 Cannon . | . . . . . Launcher . | . . . . . Special . | . . . . . Kinetic 68 | . 8 48 . 12 Thermal . | . . . . . Explosive . | . . . . . Electromagnetic 3 | . . . . 3 Robot Hit Streak 23 | . 4 23 . 17 Robot Miss Streak 2 | . 2 1 . . Penetration Max . | . . . . . Secondary Targets 1 | . . 1 . . Max Gunslinging Chain 1 | . . 1 . . Shots Hit Robots 60 | . 5 38 . 17 Core Hits 27 | . 4 18 . 5 Critical Kills . | . . . . . Critical Parts Destroyed . | . . . . . Critical Strikes . | . . . . . Melee Attacks 2 | . . . . 2 Impact . | . . . . . Slashing . | . . . . . Piercing . | . . . . . Sneak Attacks . | . . . . . Combat Hostiles . | . . . . . Follow-up Attacks . | . . . . . Damage Inflicted 470 | . 45 313 . 112 Guns 470 | . 45 313 . 112 Cannons . | . . . . . Explosions . | . . . . . Melee . | . . . . . Ramming . | . . . . . Kinetic 438 | . 45 313 . 80 Thermal . | . . . . . Explosive . | . . . . . Electromagnetic 32 | . . . . 32 Impact . | . . . . . Slashing . | . . . . . Piercing . | . . . . . Highest Corruption . | . . . . . Average Corruption . | . . . . . Corruption Purged . | . . . . . Corruption Blocked . | . . . . . Overload Shots . | . . . . . Overflow Damage . | . . . . . Projectiles . | . . . . . Explosions . | . . . . . Melee . | . . . . . Knockbacks . | . . . . . Impact . | . . . . . Kinetic . | . . . . . Secondary . | . . . . . Self-Inflicted Damage . | . . . . . Shots . | . . . . . Rammed . | . . . . . Targets Rammed . | . . . . . Kicked . | . . . . . Crushed . | . . . . . Highest Temperature 59 | . . 12 . 59 Average Temperature 11 | . . 5 . 15 Received Heat Transfer 270 | . . 135 . 135 Siege Activations . | . . . . . Martial Activations . | . . . . . Shielding Activations . | . . . . . Robots Disrupted . | . . . . . Combat Hostiles . | . . . . . Robots Corrupted . | . . . . . Combat Hostiles . | . . . . . Parts Fried . | . . . . . Impact Corruptions . | . . . . . Robots Melted . | . . . . . Combat Hostiles . | . . . . . Parts Melted . | . . . . . Heat Transferred . | . . . . . Parts Sabotaged . | . . . . . Parts Stolen . | . . . . . Parts Stripped . | . . . . . Power Chain Reactions . | . . . . . Alert | -11 -10 -9 -9 -8 ------- Run | Yrd Mat Mat Min Mat Maximum Alert Level . | . . . . . Low Security (%) 100 | 100 100 100 100 100 Level 1 . | . . . . . Level 2 . | . . . . . Level 3 . | . . . . . Level 4 . | . . . . . Level 5 . | . . . . . High Security . | . . . . . Max Security . | . . . . . Peak Influence 105 | . 50 105 22 15 Initial 22 | . . . 22 6 Average 23 | . 5 57 22 1 Influence Increases 342 | . 50 277 . 15 Destroy 0b10 Robot/C 180 | . 40 140 . . Destroy 0b10 Robot/NC 5 | . . 5 . . Destroy Leader 52 | . 10 42 . . Partial Spotted 30 | . . 30 . . Lose Combat Pursuer 75 | . . 60 . 15 Influence Decreases 342 | . 50 195 60 37 Entered New Map 76 | . . . 60 16 Time Decay 251 | . 50 195 . 6 Lost Part 15 | . . . . 15 Squads Dispatched 3 | . . 3 . . Investigation . | . . . . . Extermination . | . . . . . Reinforcement 3 | . . 3 . . Assault . | . . . . . Garrison . | . . . . . Intercept . | . . . . . Searches Triggered . | . . . . . Construction Impeded . | . . . . . Haulers Reinforced . | . . . . . Active Scanning Responses . | . . . . . Cargo Convoy Interrupts . | . . . . . Stealth | -11 -10 -9 -9 -8 --------- Run | Yrd Mat Mat Min Mat Distress Signals . | . . . . . Communications Jammed . | . . . . . Distress Signals . | . . . . . Times Spotted 25 | . 3 18 . 4 Peak Tracking Total 8 | . 3 8 . 4 Tactical Retreats 4 | . . 3 . 1 Traps | -11 -10 -9 -9 -8 ------- Run | Yrd Mat Mat Min Mat Traps Triggered 4 | . 2 2 . . Indirectly . | . . . . . Trap Hack Attempts . | . . . . . Triggered . | . . . . . Disarmed . | . . . . . Reprogrammed . | . . . . . Reused . | . . . . . Traps Extracted . | . . . . . Installed . | . . . . . Triggered . | . . . . . Machines | -11 -10 -9 -9 -8 ---------- Run | Yrd Mat Mat Min Mat Machines Disabled . | . . . . . Max in Single Turn . | . . . . . Machines Repaired . | . . . . . Machines Dismantled . | . . . . . Machines Sabotaged . | . . . . . Overloaded Fab Kills . | . . . . . Hacking | -11 -10 -9 -9 -8 --------- Run | Yrd Mat Mat Min Mat Machines Accessed . | . . . . . Terminals . | . . . . . Fabricators . | . . . . . Repair Stations . | . . . . . Recycling Units . | . . . . . Scanalyzers . | . . . . . Garrison Access . | . . . . . Total Hacks . | . . . . . Successful . | . . . . . Failed . | . . . . . Catastrophic . | . . . . . Database Lockouts . | . . . . . Manual . | . . . . . Terminals . | . . . . . Fabricators . | . . . . . Repair Stations . | . . . . . Recycling Units . | . . . . . Scanalyzers . | . . . . . Garrison Access . | . . . . . Terminal Hacks . | . . . . . Fabricator Hacks . | . . . . . Repair Station Hacks . | . . . . . Recycling Unit Hacks . | . . . . . Scanalyzer . | . . . . . Garrison Access Hacks . | . . . . . Unauthorized Hacks . | . . . . . Terminals . | . . . . . Fabricators . | . . . . . Repair Stations . | . . . . . Recycling Units . | . . . . . Scanalyzers . | . . . . . Garrison Access . | . . . . . Data Cores Recovered . | . . . . . Used . | . . . . . Hacking Detections . | . . . . . Full Trace Events . | . . . . . Feedback Events . | . . . . . Feedback Blocked . | . . . . . Robot Schematics Acquired . | . . . . . Robots Built . | . . . . . Authchips . | . . . . . Time . | . . . . . Total Robot Build Rating . | . . . . . Part Schematics Acquired . | . . . . . Parts Built . | . . . . . Authchips . | . . . . . Time . | . . . . . Total Part Build Rating . | . . . . . Parts Repaired . | . . . . . Time . | . . . . . Parts Recycled . | . . . . . Recycled Matter . | . . . . . Retrieved Matter . | . . . . . Retrieved Components . | . . . . . Parts Scanalyzed . | . . . . . Part Schematics Acquired . | . . . . . Parts Damaged . | . . . . . Bothacking | -11 -10 -9 -9 -8 ------------ Run | Yrd Mat Mat Min Mat Used RIF Installer . | . . . . . Robots Hacked 1 | . . . . 1 Non-combat . | . . . . . Combat 1 | . . . . 1 Robot Hacks Applied 1 | . . . . 1 parse_system 1 | . . . . 1 Relay Couplers Released . | . . . . . Fabnet Peak Effective % . | . . . . . Robots Rewired . | . . . . . Allies Hacked . | . . . . . Hacks Repelled . | . . . . . Allies | -11 -10 -9 -9 -8 -------- Run | Yrd Mat Mat Min Mat Total Allies . | . . . . . Largest Group . | . . . . . Highest-Rated Group . | . . . . . Highest-Rated Ally . | . . . . . Total Orders . | . . . . . Ally Attacks . | . . . . . Total Damage . | . . . . . Kills . | . . . . . Allies Corrupted . | . . . . . Allies Melted . | . . . . . Intel | -11 -10 -9 -9 -8 ------- Run | Yrd Mat Mat Min Mat Active Infowar (turns) . | . . . . . Robot Analysis Total . | . . . . . Derelict Logs Recovered . | . . . . . Drone Launches . | . . . . . Drone Recoveries . | . . . . . Exploration | -11 -10 -9 -9 -8 ------------- Run | Yrd Mat Mat Min Mat Turns Passed 946 | 143 279 346 7 171 Spaces Moved 1175 | 89 205 603 23 255 Core 4 | 4 . . . . Treads 38 | 38 . . . . Legs 345 | 47 205 93 . . Wheels . | . . . . . Hover . | . . . . . Flight 788 | . . 510 23 255 Fastest Speed 28 | 50 120 31 31 28 Average Speed 66 | 138 121 44 31 50 Slowest Speed 200 | 200 190 120 31 110 Overloaded Moves . | . . . . . Propulsion Burnouts . | . . . . . Robots Hopped 7 | . . 7 . . Potential Cave-ins . | . . . . . Cave-ins Triggered . | . . . . . Exploration Rate (%) 22 | 4 33 38 16 19 Regions Visited 4 Branch Regions 1 Pre-discovered Areas . | . . . . . Known Exits Taken 4 | 1 1 1 1 . Unknown Exits Taken . | . . . . . Scrap Searched . | . . . . . Spaces Dug . | . . . . . Terrain Destroyed . | . . . . . Melee . | . . . . . Projectile . | . . . . . AOE . | . . . . . Terrain Rammed . | . . . . . Walls Destroyed . | . . . . . Machines Disabled . | . . . . . Actions | -11 -10 -9 -9 -8 --------- Run | Yrd Mat Mat Min Mat Total 1274 | 106 230 633 22 283 Wait . | . . . . . Move 1157 | 88 204 588 22 255 Hop 7 | . . 7 . . Pick Up 20 | 7 8 4 . 1 Fast Attach 20 | 7 6 1 . 6 Attach 8 | 2 1 3 . 2 Detach 4 | 2 1 . . 1 Swap 3 | . . 3 . . Drop 13 | . 6 3 . 4 Fire 40 | . 4 24 . 12 Melee 2 | . . . . 2 Ram . | . . . . . Kick . | . . . . . Crush . | . . . . . Escape Stasis . | . . . . . Rewire . | . . . . . Trap . | . . . . . Miscellaneous . | . . . . . Route ------- -11/Scrapyard -10/Materials (discovered 2 exits: *Mat / *Min) -9/Materials -9/Mines -8/Materials History --------- Turn | Location | Event 25 | -11/Scrapyard | Identified exit to Materials 25 | -11/Scrapyard | Discovered exit to Materials (range 16) 144 | -11/Scrapyard | Entered Materials 144 | -10/Materials | Evolved 1 slot: Utility x1 316 | -10/Materials | Build established: Hacker-Mutant 346 | -10/Materials | Identified exit to Materials 346 | -10/Materials | Discovered exit to Materials (range 14) 360 | -10/Materials | Identified exit to Mines 360 | -10/Materials | Discovered exit to Mines (range 16) 423 | -10/Materials | Entered another Materials area 423 | -9/Materials | Evolved 2 slots: Propulsion x2 748 | -9/Materials | Identified exit to Mines 748 | -9/Materials | Discovered exit to Mines (range 6) 769 | -9/Materials | Entered Mines 773 | -9/Mines | Identified exit to Materials 773 | -9/Mines | Discovered exit to Materials (range 11) 776 | -9/Mines | Entered Materials 776 | -8/Materials | Evolved 2 slots: Power x1, Propulsion x1 947 | -8/Materials | Self-destructed Last Messages --------------- Acquired Pulse Rifle. Dropped Lgt. Assault Rifle. Acquired Lgt. Assault Rifle. Dropped Pulse Rifle. Acquired Lgt. Assault Rifle. T-07 Excavator is excavating. Dropped Lgt. Assault Rifle. Acquired EM Pulse Gun. Flight Unit destroyed. Acquired Cesium-ion Thruster. Slug penetrates Wall. Flight Unit destroyed. Y-45 Defender IFF system glitched. Slug penetrates Wall. EM Pulse Gun destroyed. Penetrated by Slug. Flight Unit destroyed. Cesium-ion Thruster destroyed. Penetrated by Slug. Lgt. Ion Engine destroyed. Map ----- +----------------------------------------------------+ | ????????##########?# + ! # """ #?# # #????? | | ???????????????????# # # """"" #?# #?#????? | | ???????????????????# # = # """"" #?# ######## | | ???????????????????# + # """"" #?# ## | | ???????????????????#### # ! # ??"" #?# ## " | | ??????????????????????# ################# ## " | | ??????????????????????# + # # " | | ??????????????????????# ######### + + | | ??????????????????????# #???????# # # " | | ??????????????????????# #???????# # # " | | ??????????????????????# #???????# # # / " | | ??????????????????????# #???????# # #/ | | ????????????????####### ############/### ####### | | ????????????? ^ # | | ????????????? # | | ????????????????"" """ """ # """ " | | ????????????????"" """ """ ########## + """ " | | ????????????? """ """ """Yh#????????# # """ " | | ???????????? #????????# # """ " | | ???????????? #????????# # | | ???????????? #????????##### | | ?????????????#+####### #????????????####### | | ?????????????????????# #??????????????????? | | ????????????????????## #??????????????????? | | ????????????????????+ #??????????????????? | | ????????????????????### @ #??????????????????? | | ??????????????????????#####;###??????????????????? | | ????????????????????????? ???????????????????? | | ???????????????????????# """ #?????????????????? | | ???????????????????????# """ /#?????????????????? | | ???????????????????????# """ #?????????????????? | | ???????????????????????# #?????????????????? | | ???????????????????????#########?????????????????? | | | | | | | | | | | | | | | | | | | | | | | | | | | | | | | | | | | +----------------------------------------------------+ Best States ------------- Heat Dissipation 31 Energy Generation 15 Energy Capacity 275 Matter Stores 300 Matter Capacity 300 Sight Range 16 Terrain Scan Density 10 Resistance: KI 35 Resistance: TH 35 Resistance: EX 35 Resistance: EM 35 Resistance: I 35 Resistance: S 35 Resistance: P 35 Weapon Shielding 33 Evasion (%) 64 Targeting Accuracy 6 Recoil Reduction 2 Offensive Hacking 20 Item Schematics ----------------- None Robot Schematics ------------------ None Fabricated ------------ Nothing Repaired ---------- Nothing Alien Tech Used ----------------- None Achievements -------------- None Challenges ------------ None Game ------ Seed MeleeTitaniumBeamcaster Manual? 0 Play Time 00:10:14 Cumulative 13.8 hours Start 2025.08.14 @ 09:29:12 End 2025.08.14 @ 09:39:26 Sessions 3 Manual Loads 0 Difficulty Explorer Special Mode None Game No. 19 Rogue 0 Adventurer 15 Explorer 4 Win Type - Total 0 Types 0/0/0/0/0/0/0/0/0/0 Lore% 14 Gallery% 20 Achievement% 20 Wizard Run 0 Options --------- Layout 1 ASCII 0 Keyboard 0 Movement Arrows Keybinds 0 Fullscreen 2 Font 24/Smallcaps Map View 50x35 Zoom Use 0% Tactical HUD 0 Map Filters NONE Filters NONE Steam 1 RUN: 1eac50b6-8e3e-44bf-b706-30055aea8a12